fUSD/lending_fUSD_20260106
["ID","MTS","AMOUNT","RATE_DAILY","PERIOD"]
[400556379,1767715838567,-200.0,0.00041918,10]
[400556381,1767715838577,-681.12,0.00042,30]
[400556383,1767715838587,-1000.0,0.00042,60]
[400556385,1767715838597,-185636.59562304,0.00042,2]
[400556387,1767715838607,-150.0,0.00042,120]
[400556389,1767715838616,-1353.9,0.00042005,30]
[400556391,1767715838626,-158.0017893,0.00042011,120]
[400556393,1767715838635,-151.0,0.000421,120]
[400556395,1767715838644,-938.56743519,0.000421,7]
[400556397,1767715838654,-225.49,0.00042236,30]
[400556399,1767715838664,-1530.0,0.00042237,7]
[400556401,1767715838673,-18692.0,0.00042238,30]
[400556404,1767715838685,-298.45496771,0.00042239,15]
[400556406,1767715838695,-175.39599179,0.00042239,31]
[400556408,1767715838704,-500.0,0.00042239,31]
[400556410,1767715838713,-500.0,0.00042239,31]
[400556412,1767715838722,-500.0,0.00042239,31]
[400556414,1767715838731,-500.0,0.00042239,31]
[400556416,1767715838740,-500.0,0.00042239,31]
[400556417,1767715838750,-500.0,0.00042239,31]
[400556420,1767715838759,-500.0,0.00042239,31]
[400556422,1767715838768,-500.0,0.00042239,31]
[400556424,1767715838779,-500.0,0.00042239,31]
[400556426,1767715838788,-500.0,0.00042239,31]
[400556428,1767715838797,-500.0,0.00042239,31]
[400556430,1767715838807,-500.0,0.00042239,31]
[400556432,1767715838816,-500.0,0.00042239,31]
[400556434,1767715838826,-500.0,0.00042239,31]
[400556436,1767715838835,-500.0,0.00042239,31]
[400556438,1767715838844,-500.0,0.00042239,31]
[400556440,1767715838854,-500.0,0.00042239,31]
[400556442,1767715838863,-500.0,0.00042239,31]
[400556444,1767715838873,-500.0,0.00042239,31]
[400556446,1767715838882,-500.0,0.00042239,31]
[400556448,1767715838892,-500.0,0.00042239,31]
[400556450,1767715838901,-300.0,0.00042239,31]
[400556452,1767715838911,-500.0,0.00042239,31]
[400556454,1767715838920,-500.0,0.00042239,31]
[400556456,1767715838930,-500.0,0.00042239,31]
[400556458,1767715838939,-500.0,0.00042239,31]
[400556460,1767715838948,-500.0,0.00042239,31]
[400556462,1767715838958,-500.0,0.00042239,31]
[400556464,1767715838968,-500.0,0.00042239,31]
[400556466,1767715838978,-500.0,0.00042239,31]
[400556468,1767715838988,-500.0,0.00042239,31]
[400556470,1767715838997,-500.0,0.00042239,31]
[400556472,1767715839007,-500.0,0.00042239,31]
[400556474,1767715839017,-500.0,0.00042239,31]
[400556476,1767715839027,-500.0,0.00042239,31]
[400556478,1767715839037,-500.0,0.00042239,31]
[400556480,1767715839047,-500.0,0.00042239,31]
[400556482,1767715839057,-500.0,0.00042239,31]
[400556484,1767715839067,-500.0,0.00042239,31]
[400556486,1767715839078,-500.0,0.00042239,31]
[400556488,1767715839087,-500.0,0.00042239,31]
[400556490,1767715839097,-500.0,0.00042239,31]
[400556492,1767715839109,-500.0,0.00042239,31]
[400556494,1767715839119,-500.0,0.00042239,31]
[400556496,1767715839129,-500.0,0.00042239,31]
[400556498,1767715839140,-500.0,0.00042239,31]
[400556500,1767715839150,-500.0,0.00042239,31]
[400556502,1767715839161,-500.0,0.00042239,31]
[400556504,1767715839171,-500.0,0.00042239,31]
[400556507,1767715839184,-500.0,0.00042239,31]
[400556509,1767715839195,-500.0,0.00042239,31]
[400556510,1767715839206,-500.0,0.00042239,31]
[400556513,1767715839216,-500.0,0.00042239,31]
[400556514,1767715839227,-500.0,0.00042239,31]
[400556517,1767715839238,-500.0,0.00042239,31]
[400556519,1767715839248,-500.0,0.00042239,31]
[400556521,1767715839257,-500.0,0.00042239,31]
[400556523,1767715839267,-500.0,0.00042239,31]
[400556525,1767715839277,-235.25034981,0.00042239,31]
[400556527,1767715839287,-500.0,0.00042239,31]
[400556529,1767715839297,-500.0,0.00042239,31]
[400556531,1767715839308,-500.0,0.00042239,31]
[400556533,1767715839319,-500.0,0.00042239,31]
[400556535,1767715839329,-500.0,0.00042239,31]
[400556537,1767715839338,-500.0,0.00042239,31]
[400556539,1767715839348,-586.55895383,0.00042239,31]
[400556541,1767715839359,-500.0,0.00042239,31]
[400556543,1767715839368,-500.0,0.00042239,31]
[400556545,1767715839378,-500.0,0.00042239,31]
[400556547,1767715839387,-500.0,0.00042239,31]
[400556549,1767715839396,-500.0,0.00042239,31]
[400556551,1767715839406,-500.0,0.00042239,31]
[400556553,1767715839415,-500.0,0.00042239,31]
[400556555,1767715839424,-500.0,0.00042239,31]
[400556557,1767715839434,-500.0,0.00042239,31]
[400556559,1767715839443,-500.0,0.00042239,31]
[400556561,1767715839452,-500.0,0.00042239,31]
[400556563,1767715839462,-500.0,0.00042239,31]
[400556565,1767715839473,-500.0,0.00042239,31]
[400556567,1767715839483,-500.0,0.00042239,31]
[400556569,1767715839492,-373.52503498,0.00042239,31]
[400556571,1767715839502,-500.0,0.00042239,31]
[400556573,1767715839511,-500.0,0.00042239,31]
[400556575,1767715839521,-500.0,0.00042239,31]
[400556577,1767715839531,-500.0,0.00042239,31]
[400556579,1767715839540,-500.0,0.00042239,31]
[400556581,1767715839550,-500.0,0.00042239,31]
[400556583,1767715839562,-500.0,0.00042239,31]
[400556585,1767715839572,-500.0,0.00042239,31]
[400556587,1767715839581,-500.0,0.00042239,31]
[400556589,1767715839590,-500.0,0.00042239,31]
[400556591,1767715839599,-500.0,0.00042239,31]
[400556593,1767715839611,-500.0,0.00042239,31]
[400556595,1767715839621,-586.37605367,0.00042239,31]
[400556598,1767715839631,-500.0,0.00042239,31]
[400556599,1767715839640,-500.0,0.00042239,31]
[400556601,1767715839650,-500.0,0.00042239,31]
[400556603,1767715839660,-500.0,0.00042239,31]
[400556605,1767715839670,-500.0,0.00042239,31]
[400556608,1767715839680,-500.0,0.00042239,31]
[400556609,1767715839689,-500.0,0.00042239,31]
[400556611,1767715839699,-500.0,0.00042239,31]
[400556614,1767715839709,-500.0,0.00042239,31]
[400556616,1767715839719,-500.0,0.00042239,31]
[400556618,1767715839728,-500.0,0.00042239,31]
[400556620,1767715839737,-500.0,0.00042239,31]
[400556622,1767715839747,-500.0,0.00042239,31]
[400556624,1767715839756,-500.0,0.00042239,31]
[400556626,1767715839765,-500.0,0.00042239,31]
[400556628,1767715839774,-500.0,0.00042239,31]
[400556630,1767715839783,-500.0,0.00042239,31]
[400556632,1767715839792,-500.0,0.00042239,31]
[400556634,1767715839801,-500.0,0.00042239,31]
[400556636,1767715839811,-500.0,0.00042239,31]
[400556638,1767715839821,-500.0,0.00042239,31]
[400556640,1767715839830,-500.0,0.00042239,31]
[400556641,1767715839840,-500.0,0.00042239,31]
[400556644,1767715839849,-500.0,0.00042239,31]
[400556646,1767715839859,-500.0,0.00042239,31]
[400556648,1767715839869,-500.0,0.00042239,31]
[400556650,1767715839879,-500.0,0.00042239,31]
[400556652,1767715839888,-608.63760537,0.00042239,31]
[400556654,1767715839897,-500.0,0.00042239,31]
[400556656,1767715839907,-500.0,0.00042239,31]
[400556658,1767715839917,-500.0,0.00042239,31]
[400556660,1767715839927,-500.0,0.00042239,31]
[400556662,1767715839936,-500.0,0.00042239,31]
[400556664,1767715839946,-500.0,0.00042239,31]
[400556666,1767715839958,-500.0,0.00042239,31]
[400556668,1767715839968,-1000.0,0.000423,7]
[400556670,1767715839977,-151.0,0.000423,120]
[400556672,1767715839987,-11844.77875623,0.00042343,5]
[400556674,1767715839996,-2500.0,0.00042374,2]
[400556676,1767715840006,-257.8886,0.00042375,2]
[400556678,1767715840016,-35691.1855,0.00042375,2]
[400556680,1767715840025,-2087.0079,0.00042375,2]
[400556682,1767715840035,-160.0,0.000424,43]
[400556684,1767715840044,-516.0,0.00042408,16]
[400556686,1767715840053,-3000.0,0.000425,30]
[400556688,1767715840063,-3000.0,0.000425,30]
[400556690,1767715840076,-225.49,0.0004251,30]
[400556692,1767715840086,-155.97549783,0.00042566,28]
[400556713,1767715840286,-1002.13088503,0.00042575,50]
[400556715,1767715840296,-1096.20187311,0.00042575,50]
[400556717,1767715840305,-1001.67282638,0.00042575,50]
[400556719,1767715840314,-1006.34124515,0.00042575,50]
[400556721,1767715840324,-1068.47464282,0.00042575,50]
[400556723,1767715840333,-1085.07163554,0.00042575,50]
[400556725,1767715840343,-1017.69295348,0.00042575,50]
[400556727,1767715840352,-1126.78203469,0.00042575,50]
[400556728,1767715840361,-1131.03708288,0.00042575,50]
[400556731,1767715840370,-1133.36859898,0.00042575,50]
[400556733,1767715840380,-1045.49249115,0.00042575,50]
[400556735,1767715840389,-1084.84305656,0.00042575,50]
[400556736,1767715840398,-1005.97614163,0.00042575,50]
[400556739,1767715840408,-1103.64294417,0.00042575,50]
[400556741,1767715840418,-1052.46166468,0.00042575,50]
[400556743,1767715840427,-1054.6039306,0.00042575,50]
[400556745,1767715840437,-1023.43991048,0.00042575,50]
[400556746,1767715840446,-1115.19009234,0.00042575,50]
[400556749,1767715840455,-1072.11008618,0.00042575,50]
[400556751,1767715840464,-1626.49596589,0.00042575,50]
[400556753,1767715840474,-500.0,0.0004263,90]
[400556755,1767715840483,-500.0,0.0004263,90]
[400556757,1767715840492,-500.0,0.0004263,90]
[400556759,1767715840501,-300.0,0.0004263,90]
[400556761,1767715840511,-500.0,0.0004263,90]
[400556763,1767715840519,-349.83087352,0.0004264,30]
[400556765,1767715840529,-300.070003,0.00042666,112]
[400556767,1767715840538,-18692.0,0.00042669,30]
[400556769,1767715840547,-155.97549781,0.00042695,28]
[400556771,1767715840556,-250.0,0.0004274,10]
[400556773,1767715840565,-507.465941,0.0004274,10]
[400556775,1767715840575,-1353.9,0.00042769,30]
[400556777,1767715840584,-225.49,0.00042784,30]
[400556779,1767715840593,-500.0,0.00042795,90]
[400556781,1767715840603,-151.0,0.000428,120]
[400556782,1767715840612,-155.97549781,0.00042825,28]
[400556784,1767715840622,-581.45000001,0.00042933,30]
[400556786,1767715840632,-439.29698496,0.00042933,30]
[400556789,1767715840642,-365.64970051,0.00042933,30]
[400556791,1767715840651,-1691.01067703,0.0004294,15]
[400556792,1767715840660,-155.97549781,0.00042954,28]
[400556795,1767715840670,-500.0,0.00042959,120]
[400556796,1767715840680,-500.0,0.00043,120]
[400556797,1767715840690,-2000.0,0.00043,120]
[400556798,1767715840699,-2587.99765355,0.00043,15]
[400556799,1767715840708,-500.0,0.00043,120]
[400556800,1767715840718,-500.0,0.00043,120]
[400556801,1767715840730,-500.0,0.00043,120]
[400556802,1767715840739,-150.0,0.00043,120]
[400556803,1767715840748,-714.56816355,0.00043,120]
[400556804,1767715840757,-151.0,0.00043,120]
[400556805,1767715840766,-299.73918347,0.0004301,120]
[400556806,1767715840775,-566.07912,0.0004301,120]
[400556807,1767715840784,-566.07913,0.0004301,120]
[400556808,1767715840793,-566.07913,0.0004301,120]
[400556809,1767715840803,-566.07913,0.0004301,120]
[400556811,1767715840812,-566.07912,0.0004301,120]
[400556813,1767715840821,-2587.99765351,0.00043038,15]
[400556815,1767715840830,-225.49,0.00043058,30]
[400556817,1767715840839,-1691.01067703,0.00043074,15]
[400556819,1767715840848,-2587.99765351,0.00043076,15]
[400556821,1767715840859,-155.97549781,0.00043083,28]
[400556823,1767715840869,-18692.0,0.000431,30]
[400556825,1767715840878,-2587.99765351,0.00043114,15]
[400556827,1767715840887,-2587.99765351,0.00043152,15]
[400556829,1767715840896,-2500.0,0.00043157,120]
[400556831,1767715840905,-2405.35707028,0.00043157,120]
[400556833,1767715840920,-156.72501406,0.00043157,120]
[400556835,1767715840929,-2500.0,0.00043157,120]
[400556837,1767715840939,-2587.99765351,0.0004319,15]
[400556839,1767715840948,-3337.9992808,0.000432,2]
[400556841,1767715840957,-282.19986981,0.000432,120]
[400556843,1767715840967,-490.73,0.000432,60]
[400556845,1767715840977,-1691.01067703,0.00043208,15]
[400556847,1767715840986,-155.97549781,0.00043213,28]
[400556849,1767715840996,-2587.99765351,0.00043228,15]
[400556851,1767715841005,-920.58708928,0.00043234,15]
[400556853,1767715841014,-300.0,0.00043236,2]
[400556855,1767715841023,-920.58708916,0.00043242,15]
[400556858,1767715841034,-300.0,0.00043247,2]
[400556860,1767715841044,-300.0,0.00043247,2]
[400556862,1767715841052,-920.58708916,0.00043249,15]
[400556864,1767715841062,-920.58708916,0.00043257,15]
[400556865,1767715841071,-920.58708916,0.00043265,15]
[400556867,1767715841080,-2587.99765351,0.00043266,15]
[400556869,1767715841089,-920.58708916,0.00043273,15]
[400556871,1767715841098,-300.0,0.00043278,2]
[400556874,1767715841110,-920.58708916,0.0004328,15]
[400556876,1767715841119,-920.58708916,0.00043288,15]
[400556878,1767715841128,-920.58708916,0.00043296,15]
[400556880,1767715841137,-251.87316765,0.00043298,120]
[400556882,1767715841147,-150.38,0.000433,60]
[400556884,1767715841156,-920.58708916,0.00043303,15]
[400556885,1767715841165,-2587.99765351,0.00043304,15]
[400556887,1767715841174,-920.58708916,0.00043311,15]
[400556889,1767715841186,-920.58708916,0.00043319,15]
[400556892,1767715841196,-920.58708916,0.00043327,15]
[400556894,1767715841205,-225.53,0.00043332,30]
[400556896,1767715841214,-920.58708916,0.00043334,15]
[400556898,1767715841223,-191.34476789,0.00043342,120]
[400556900,1767715841234,-191.34,0.00043342,120]
[400556902,1767715841243,-1691.01067703,0.00043342,15]
[400556904,1767715841252,-920.58708916,0.00043342,15]
[400556905,1767715841262,-523.73832392,0.00043342,120]
[400556908,1767715841271,-2587.99765351,0.00043342,15]
[400556909,1767715841280,-155.97549781,0.00043342,28]
[400556911,1767715841289,-633.91942504,0.00043342,2]
[400556913,1767715841298,-1000.0,0.00043343,2]
[400556915,1767715841307,-33569.5495,0.00043343,2]
[400556917,1767715841316,-201.4028428,0.00043344,20]
[400556919,1767715841326,-173.19162938,0.00043344,11]
[400556922,1767715841336,-5050.0,0.000434,36]
[400556923,1767715841345,-160.0,0.000434,47]
[400556925,1767715841356,-1000.0,0.000434,7]
[400556928,1767715841365,-500.0,0.000434,120]
[400556930,1767715841375,-1000.0,0.00043401,2]
[400556931,1767715841383,-933.16478119,0.00043401,2]
[400556933,1767715841393,-800.0,0.00043402,16]
[400556936,1767715841403,-800.0,0.00043402,16]
[400556937,1767715841413,-800.0,0.00043402,16]
[400556940,1767715841422,-800.0,0.00043402,16]
[400556942,1767715841438,-800.0,0.00043402,16]
[400556945,1767715841451,-800.0,0.00043402,16]
[400556947,1767715841460,-800.0,0.00043402,16]
[400556949,1767715841470,-800.0,0.00043402,16]
[400556951,1767715841479,-800.0,0.00043402,16]
[400556953,1767715841488,-800.0,0.00043402,16]
[400556955,1767715841497,-800.0,0.00043402,16]
[400556957,1767715841507,-800.0,0.00043402,16]
[400556959,1767715841516,-800.0,0.00043402,16]
[400556961,1767715841526,-800.0,0.00043402,16]
[400556963,1767715841535,-800.0,0.00043402,16]
[400556965,1767715841544,-800.0,0.00043402,16]
[400556967,1767715841554,-5507.73931446,0.00043432,4]
[400556969,1767715841563,-11015.4786289,0.00043432,4]
[400556971,1767715841573,-191.70605414,0.00043432,7]
[400556973,1767715841582,-191.70605414,0.00043432,7]
[400556975,1767715841592,-16523.2179434,0.00043434,4]
[400556977,1767715841603,-151.0,0.00043439,120]
[400556979,1767715841613,-300.0,0.00043441,30]
[400556981,1767715841622,-300.0,0.00043441,30]
[400556983,1767715841632,-300.0,0.00043441,30]
[400556985,1767715841641,-300.0,0.00043441,30]
[400556987,1767715841651,-300.0,0.00043441,2]
[400556989,1767715841660,-999.0,0.00043441,120]
[400556991,1767715841671,-159.71777643,0.00043442,31]
[400556993,1767715841681,-25798.99945021,0.00043442,30]
[400556995,1767715841690,-3524488.53417373,0.00043442,7]
[400557075,1767715842428,-73.10774245,0.00042122,120]
[400557077,1767715842442,-84.89404685,0.00042122,120]
[400557079,1767715842452,-827.33316677,0.00043442,7]
[400557082,1767715842463,-3889.24007637,0.00043442,7]
[400557126,1767715842792,-2164.17138797,0.00043442,7]
[400557128,1767715842804,-6443.94524875,0.00043442,7]
[400557312,1767715844675,-542.64780191,0.00029447,2]
[400557314,1767715844685,-158.0017893,0.00042233,120]
[400557316,1767715844694,-170308.81586261,0.00043442,7]
[400557318,1767715844705,-315857.54628585,0.00043442,7]
[400557457,1767715846164,-969.46938097,0.00043442,7]
[400557769,1767716189232,-168.0,0.00018176,2]
[400557770,1767716707761,10000.01,0.00018,2]
[400557771,1767716707803,10000.01,0.00018,2]
[400557772,1767716707834,10000.01,0.00018,2]
[400557773,1767716707862,10000.01,0.00018,2]
[400557774,1767716707890,10000.01,0.00018,2]
[400557775,1767716707917,10000.01,0.00018,2]
[400557776,1767716707945,10000.01,0.00018,2]
[400557777,1767716707972,10000.01,0.00018,2]
[400557778,1767716707998,10000.01,0.00018,2]
[400557779,1767716708026,10000.01,0.00018,2]
[400557780,1767716708055,10000.01,0.00018,2]
[400557781,1767716708081,10000.01,0.00018,2]
[400557782,1767716708108,10000.01,0.00018,2]
[400557783,1767716708138,10000.01,0.00018,2]
[400557784,1767716708167,10000.01,0.00018,2]
[400557785,1767716708197,25000.0,0.00018,2]
[400557786,1767716708226,25784.0,0.00018,2]
[400557787,1767716708259,650.17138797,0.00018,2]
[400557788,1767716728721,868.01799634,0.00016,2]
[400557789,1767716770939,-300.0,0.00017999,2]
[400557790,1767716820854,1079.54016464,0.000153,2]
[400557792,1767716910735,506.89419993,0.000154,2]
[400557793,1767716914409,2045.05502519,0.00015807,2]
[400557800,1767717032073,-160.0,0.00017,2]
[400557801,1767717032083,-195.0,0.0001745,2]
[400557802,1767717032092,-195.0,0.00017758,2]
[400557803,1767717032102,-500.93290432,0.00017899,2]
[400557804,1767717032223,-41.71489759,0.00017899,2]
[400557805,1767717032233,-385.11946288,0.00017899,2]
[400557806,1767717032244,-522.87162495,0.00017899,2]
[400557807,1767717032254,-300.0,0.00017899,2]
[400557808,1767717032263,-526.74126437,0.00017899,2]
[400557809,1767717032274,-673.25873563,0.00017899,2]
[400557810,1767717032283,-109.50984109,0.00017899,2]
[400557811,1767717032295,-183.49015891,0.00017899,2]
[400557812,1767717032304,-275.76350438,0.00017899,2]
[400557813,1767717032319,-24.23649562,0.00017899,2]
[400557814,1767717032328,-1839.40350438,0.000179,2]
[400557815,1767717032340,-1422.63899574,0.000179,2]
[400557816,1767717032351,-4201.65523545,0.000179,2]
[400557848,1767717037905,-14327.9297579,0.000179,2]
[400557849,1767717037919,-200.63947993,0.000179,2]
[400557850,1767717037930,-211.30647502,0.000179,2]
[400557851,1767717037939,-251.9665565,0.000179,2]
[400557852,1767717037950,-191.70605414,0.0001799,2]
[400557853,1767717037960,-191.70605414,0.0001799,2]
[400557854,1767717037970,-191.70605414,0.0001799,2]
[400557855,1767717037979,-500.0,0.00017999,2]
[400557856,1767717037990,-300.0,0.00017999,2]
[400557857,1767717037999,-572.59615382,0.00017999,2]
[400557858,1767717038009,-500.0,0.00017999,2]
[400557859,1767717038019,-500.0,0.00017999,2]
[400557860,1767717038029,-924.34815181,0.00017999,2]
[400557861,1767717038040,-500.44505421,0.00017999,2]
[400557862,1767717038050,-344.16113464,0.00017999,2]
[400557863,1767717038061,-500.0,0.00017999,2]
[400557864,1767717038072,-498.99148565,0.00017999,2]
[400557865,1767717038082,-175.39599179,0.00017999,2]
[400557866,1767717038092,-924.34815181,0.00017999,2]
[400557867,1767717038103,-542.77065189,0.00017999,2]
[400557868,1767717038117,-500.0,0.00017999,2]
[400557869,1767717038127,-500.0,0.00017999,2]
[400557870,1767717038146,-924.34815181,0.00017999,2]
[400557871,1767717038157,-433.29138499,0.00017999,2]
[400557872,1767717038167,-473.26906906,0.00017999,2]
[400557873,1767717038178,-924.34815181,0.00017999,2]
[400557874,1767717038188,-924.34815181,0.00017999,2]
[400557875,1767717038199,-924.34815181,0.00017999,2]
[400557876,1767717038210,-924.34815181,0.00017999,2]
[400557877,1767717038220,-924.34815181,0.00017999,2]
[400557878,1767717038230,-924.34815181,0.00017999,2]
[400557879,1767717038241,-924.34815181,0.00017999,2]
[400557881,1767717038251,-924.34815181,0.00017999,2]
[400557883,1767717038261,-924.34815181,0.00017999,2]
[400557885,1767717038270,-924.34815181,0.00017999,2]
[400557887,1767717038280,-924.34815181,0.00017999,2]
[400557889,1767717038290,-924.34815181,0.00017999,2]
[400557891,1767717038300,-924.34815181,0.00017999,2]
[400557893,1767717038314,-924.34815181,0.00017999,2]
[400557895,1767717038325,-924.34815181,0.00017999,2]
[400557899,1767717038337,-924.34815181,0.00017999,2]
[400557901,1767717038348,-924.34815181,0.00017999,2]
[400557903,1767717038359,-924.34815181,0.00017999,2]
[400557905,1767717038369,-924.34815181,0.00017999,2]
[400557907,1767717038379,-924.34815181,0.00017999,2]
[400557909,1767717038390,-924.34815181,0.00017999,2]
[400557911,1767717038400,-924.34815181,0.00017999,2]
[400557913,1767717038412,-924.34815181,0.00017999,2]
[400557915,1767717038422,-924.34815181,0.00017999,2]
[400557917,1767717038432,-924.34815181,0.00017999,2]
[400557919,1767717038442,-924.34815181,0.00017999,2]
[400557921,1767717038452,-924.34815181,0.00017999,2]
[400557923,1767717038462,-924.34815181,0.00017999,2]
[400557925,1767717038472,-924.34815181,0.00017999,2]
[400557927,1767717038481,-924.34815181,0.00017999,2]
[400557929,1767717038491,-924.34815181,0.00017999,2]
[400557931,1767717038501,-924.34815181,0.00017999,2]
[400557933,1767717038513,-924.34815181,0.00017999,2]
[400557934,1767717038523,-924.34815181,0.00017999,2]
[400557935,1767717038537,-924.34815181,0.00017999,2]
[400557936,1767717038548,-924.34815181,0.00017999,2]
[400557937,1767717038558,-924.34815181,0.00017999,2]
[400557938,1767717038568,-924.34815181,0.00017999,2]
[400557939,1767717038579,-924.34815181,0.00017999,2]
[400557940,1767717038588,-924.34815181,0.00017999,2]
[400557941,1767717038598,-924.34815181,0.00017999,2]
[400557942,1767717038610,-924.34815181,0.00017999,2]
[400557943,1767717038619,-924.34815181,0.00017999,2]
[400557944,1767717038629,-924.34815181,0.00017999,2]
[400557945,1767717038639,-924.34815181,0.00017999,2]
[400557946,1767717038650,-924.34815181,0.00017999,2]
[400557947,1767717038663,-924.34815181,0.00017999,2]
[400557948,1767717038673,-924.34815181,0.00017999,2]
[400557949,1767717038683,-919.48316154,0.00017999,2]
[400557950,1767717038693,-534.40941727,0.00017999,2]
[400557951,1767717038707,-385.07374427,0.00017999,2]
[400557952,1767717038716,-919.48316154,0.00017999,2]
[400557953,1767717038726,-919.48316154,0.00017999,2]
[400557954,1767717038735,-919.48316154,0.00017999,2]
[400557955,1767717038745,-919.48316154,0.00017999,2]
[400557956,1767717038754,-919.48316154,0.00017999,2]
[400557957,1767717038764,-919.48316154,0.00017999,2]
[400557958,1767717038774,-919.48316154,0.00017999,2]
[400557959,1767717038783,-919.48316154,0.00017999,2]
[400557960,1767717038793,-919.48316154,0.00017999,2]
[400557961,1767717038802,-919.48316154,0.00017999,2]
[400557962,1767717038812,-919.48316154,0.00017999,2]
[400557963,1767717038822,-919.48316154,0.00017999,2]
[400557964,1767717038831,-919.48316154,0.00017999,2]
[400557965,1767717038841,-919.48316154,0.00017999,2]
[400557966,1767717038851,-919.48316154,0.00017999,2]
[400557967,1767717038861,-919.48316154,0.00017999,2]
[400557968,1767717038870,-919.48316154,0.00017999,2]
[400557969,1767717038880,-919.48316154,0.00017999,2]
[400557970,1767717038890,-919.48316154,0.00017999,2]
[400557971,1767717038899,-919.48316154,0.00017999,2]
[400557972,1767717038918,-919.48316154,0.00017999,2]
[400557973,1767717038929,-919.48316154,0.00017999,2]
[400557974,1767717038939,-919.48316154,0.00017999,2]
[400557975,1767717038949,-919.48316154,0.00017999,2]
[400557976,1767717038959,-919.48316154,0.00017999,2]
[400557977,1767717038968,-919.48316154,0.00017999,2]
[400557978,1767717038978,-919.48316154,0.00017999,2]
[400557979,1767717038988,-919.48316154,0.00017999,2]
[400557980,1767717038998,-919.48316154,0.00017999,2]
[400557981,1767717039007,-930.8348055,0.00017999,2]
[400557982,1767717039018,-930.8348055,0.00017999,2]
[400557983,1767717039028,-930.8348055,0.00017999,2]
[400557984,1767717039038,-930.8348055,0.00017999,2]
[400557985,1767717039048,-930.8348055,0.00017999,2]
[400557986,1767717039059,-930.8348055,0.00017999,2]
[400557987,1767717039069,-930.8348055,0.00017999,2]
[400557988,1767717039079,-930.8348055,0.00017999,2]
[400557989,1767717039089,-930.8348055,0.00017999,2]
[400557990,1767717039100,-25353.36912669,0.00018,2]
[400557991,1767717039115,-1455.9677463,0.00018,2]
[400557992,1767717039130,-27435.99942443,0.00018,2]
[400557993,1767717039154,-7467.23568678,0.00018,2]
[400557994,1767717039168,-17101.66164791,0.00018,2]
[400557995,1767717039183,-3663.735694,0.00018,2]
[400557996,1767717039200,-11471.66557483,0.00018,2]
[400557997,1767717039225,-19845.24128045,0.00018,2]
[400557998,1767717039237,-2232694.64600023,0.00018,2]
[400557999,1767717039249,-3865653.46030784,0.00018,2]
[400558000,1767717039274,-5778.20325848,0.00018,2]
[400558001,1767717039286,-13861.72199951,0.00018,2]
[400558002,1767717039382,-279.06,0.00018,2]
[400558003,1767717040146,-356.68236483,0.00018,2]
[400558004,1767717040159,-644.38,0.00018,2]
[400558005,1767717040170,-134918.12578827,0.00018,2]
[400558006,1767717040206,-15390.49999992,0.00018,2]
[400558007,1767717040219,-763.45759774,0.00018,2]
[400558008,1767717040231,-629.67317731,0.00018,2]
[400558010,1767717040408,-3806.85475125,0.00018,2]
[400558011,1767717040422,-396.71618048,0.00018,2]
[400558014,1767717044099,-502.46263758,0.00017999,2]
[400558015,1767717044108,-7691.87344605,0.00018,2]
[400558017,1767717045234,-6971.75877574,0.00018,2]
[400558018,1767717045248,-981.03147857,0.00018,2]
[400558020,1767717045888,-5824.83718009,0.00018,2]
[400558021,1767717045968,-143.39841752,0.00018,2]
[400558022,1767717045987,-1173.7148685,0.00018,2]
[400558023,1767717046216,-4371.71121826,0.00018,2]
[400558024,1767717046231,-260325.64538221,0.00018,2]